[Event "Early-Titled-Tuesday-Blitz-May-14-2024"]
[Site "Chess.com"]
[Date "2024.05.14"]
[Round "10"]
[White "Eagle_2019"]
[Black "AryanTari"]
[Result "0-1"]
[WhiteElo "2864"]
[BlackElo "3051"]
[TimeControl "180+1"]
[EndTime "9:57:24 PDT"]
[Termination "AryanTari won by resignation"]

1. d4 {[%clk 0:02:56.8]} 1... d5 {[%clk 0:03:00]} 2. c4 {[%clk 0:02:55.9]} 2...
e6 {[%clk 0:03:00.5]} 3. Nf3 {[%clk 0:02:55.1]} 3... Nf6 {[%clk 0:03:00.6]} 4.
e3 {[%clk 0:02:55.5]} 4... b6 {[%clk 0:02:56.4]} 5. b3 {[%clk 0:02:54.6]} 5...
Bb7 {[%clk 0:02:56.7]} 6. Bb2 {[%clk 0:02:54.9]} 6... Nbd7 {[%clk 0:02:57.4]} 7.
Nc3 {[%clk 0:02:53.6]} 7... Be7 {[%clk 0:02:49.9]} 8. Bd3 {[%clk 0:02:53.5]}
8... O-O {[%clk 0:02:50.1]} 9. O-O {[%clk 0:02:53.3]} 9... c5 {[%clk 0:02:34.4]}
10. cxd5 {[%clk 0:02:50]} 10... exd5 {[%clk 0:02:34.6]} 11. Ne2 {[%clk
0:02:49.1]} 11... Re8 {[%clk 0:02:12.9]} 12. Ng3 {[%clk 0:02:48.9]} 12... Bf8
{[%clk 0:02:11.1]} 13. Qe2 {[%clk 0:02:42.6]} 13... a6 {[%clk 0:02:02.3]} 14.
Rac1 {[%clk 0:02:34.9]} 14... Ne4 {[%clk 0:01:55.5]} 15. Ne5 {[%clk 0:02:27.1]}
15... Bd6 {[%clk 0:01:07.1]} 16. Nxf7 {[%clk 0:02:03.6]} 16... Kxf7 {[%clk
0:01:00.6]} 17. Nxe4 {[%clk 0:02:02.8]} 17... dxe4 {[%clk 0:00:55.6]} 18. Bc4+
{[%clk 0:02:02.4]} 18... Kf8 {[%clk 0:00:53.7]} 19. dxc5 {[%clk 0:01:36.1]}
19... Be5 {[%clk 0:00:30.4]} 20. c6 {[%clk 0:01:20.8]} 20... Bxc6 {[%clk
0:00:29.9]} 21. Qh5 {[%clk 0:01:20]} 21... Qf6 {[%clk 0:00:27.2]} 22. Ba3+
{[%clk 0:01:17.9]} 22... Nc5 {[%clk 0:00:17.2]} 23. Qxh7 {[%clk 0:01:06.7]}
23... Ke7 {[%clk 0:00:15]} 24. f4 {[%clk 0:00:23.4]} 24... exf3 {[%clk
0:00:15.6]} 25. Qc2 {[%clk 0:00:19.7]} 25... Rh8 {[%clk 0:00:10.9]} 26. g3
{[%clk 0:00:18.7]} 26... Rh3 {[%clk 0:00:10.2]} 27. b4 {[%clk 0:00:17.1]} 27...
Bxg3 {[%clk 0:00:09.8]} 28. bxc5 {[%clk 0:00:13.9]} 28... Bxh2+ {[%clk 0:00:10]}
29. Qxh2 {[%clk 0:00:13.1]} 29... Qg5+ {[%clk 0:00:09.5]} 0-1

[Event "Early-Titled-Tuesday-Blitz-May-14-2024"]
[Site "Chess.com"]
[Date "2024.05.14"]
[Round "10"]
[White "RandomNoob04"]
[Black "Djager97"]
[Result "1-0"]
[WhiteElo "2718"]
[BlackElo "2536"]
[TimeControl "180+1"]
[EndTime "9:57:26 PDT"]
[Termination "RandomNoob04 won on time"]

1. e4 {[%clk 0:03:00.9]} 1... e5 {[%clk 0:02:59.7]} 2. d4 {[%clk 0:03:01.3]}
2... exd4 {[%clk 0:02:58.4]} 3. Qxd4 {[%clk 0:03:02.2]} 3... Nc6 {[%clk
0:02:57.8]} 4. Qe3 {[%clk 0:03:02.9]} 4... g6 {[%clk 0:02:57.6]} 5. Nc3 {[%clk
0:03:02.2]} 5... Bg7 {[%clk 0:02:57.7]} 6. h4 {[%clk 0:03:02.9]} 6... h6 {[%clk
0:02:54.3]} 7. Be2 {[%clk 0:02:53.5]} 7... Nge7 {[%clk 0:02:53.5]} 8. Bd2 {[%clk
0:02:51.1]} 8... O-O {[%clk 0:02:46.6]} 9. O-O-O {[%clk 0:02:51.7]} 9... d5
{[%clk 0:02:42]} 10. exd5 {[%clk 0:02:43.8]} 10... Nxd5 {[%clk 0:02:42.9]} 11.
Nxd5 {[%clk 0:02:44.5]} 11... Qxd5 {[%clk 0:02:42.8]} 12. Kb1 {[%clk 0:02:44.5]}
12... Be6 {[%clk 0:02:42.5]} 13. b3 {[%clk 0:02:43.2]} 13... Nd4 {[%clk
0:02:13]} 14. Bc3 {[%clk 0:02:28]} 14... c5 {[%clk 0:02:08.1]} 15. Nf3 {[%clk
0:02:23.5]} 15... a5 {[%clk 0:02:07.6]} 16. Nxd4 {[%clk 0:02:20.6]} 16... cxd4
{[%clk 0:02:04]} 17. Bxd4 {[%clk 0:02:21.5]} 17... Qc6 {[%clk 0:01:34.4]} 18.
Bxg7 {[%clk 0:02:13.5]} 18... Kxg7 {[%clk 0:01:35.3]} 19. h5 {[%clk 0:02:00.7]}
19... g5 {[%clk 0:01:20.8]} 20. f4 {[%clk 0:02:00.4]} 20... a4 {[%clk
0:01:17.3]} 21. fxg5 {[%clk 0:01:42.8]} 21... axb3 {[%clk 0:01:17.2]} 22. axb3
{[%clk 0:01:42.3]} 22... Rfc8 {[%clk 0:01:08.2]} 23. gxh6+ {[%clk 0:01:29.2]}
23... Kf8 {[%clk 0:01:08.2]} 24. Rd2 {[%clk 0:01:13.4]} 24... Bf5 {[%clk
0:00:57.4]} 25. Bc4 {[%clk 0:00:54.3]} 25... Qf6 {[%clk 0:00:40.8]} 26. Qd4
{[%clk 0:00:54.4]} 26... Qxh6 {[%clk 0:00:40.9]} 27. Rf1 {[%clk 0:00:52.4]}
27... Ra5 {[%clk 0:00:19.9]} 28. Qd6+ {[%clk 0:00:37.9]} 28... Qxd6 {[%clk
0:00:19.9]} 29. Rxd6 {[%clk 0:00:38.8]} 29... Rca8 {[%clk 0:00:20.6]} 30. Rf2
{[%clk 0:00:18]} 30... Ra1+ {[%clk 0:00:12.4]} 31. Kb2 {[%clk 0:00:18.5]} 31...
R1a2+ {[%clk 0:00:12.7]} 32. Kc3 {[%clk 0:00:19]} 32... R8a5 {[%clk 0:00:07]}
33. Rf6 {[%clk 0:00:16.9]} 1-0

[Event "Early-Titled-Tuesday-Blitz-May-14-2024"]
[Site "Chess.com"]
[Date "2024.05.14"]
[Round "10"]
[White "Quattroporte300"]
[Black "Nf3c5"]
[Result "1-0"]
[WhiteElo "2441"]
[BlackElo "2622"]
[TimeControl "180+1"]
[EndTime "9:57:31 PDT"]
[Termination "Quattroporte300 won on time"]

1. e4 {[%clk 0:03:00.9]} 1... c5 {[%clk 0:02:55.1]} 2. Nc3 {[%clk 0:03:00.3]}
2... Nc6 {[%clk 0:02:53.9]} 3. Bb5 {[%clk 0:03:00.4]} 3... Nd4 {[%clk
0:02:54.1]} 4. Bc4 {[%clk 0:03:01]} 4... a6 {[%clk 0:02:50.1]} 5. a4 {[%clk
0:02:59.4]} 5... e6 {[%clk 0:02:50.5]} 6. Nge2 {[%clk 0:02:59.8]} 6... Nf6
{[%clk 0:02:47.1]} 7. O-O {[%clk 0:02:59.3]} 7... d5 {[%clk 0:02:43.9]} 8. exd5
{[%clk 0:02:59]} 8... exd5 {[%clk 0:02:44]} 9. Ba2 {[%clk 0:02:59.7]} 9... Bg4
{[%clk 0:02:36]} 10. h3 {[%clk 0:02:49.3]} 10... Bh5 {[%clk 0:02:28.3]} 11. g4
{[%clk 0:02:49.2]} 11... Bg6 {[%clk 0:02:27.3]} 12. d3 {[%clk 0:02:38.8]} 12...
h5 {[%clk 0:02:18.1]} 13. g5 {[%clk 0:02:35.1]} 13... Qd7 {[%clk 0:01:57.3]} 14.
Nf4 {[%clk 0:02:31.9]} 14... Bd6 {[%clk 0:01:54]} 15. Kg2 {[%clk 0:02:24.9]}
15... Bf5 {[%clk 0:01:34.4]} 16. Re1+ {[%clk 0:02:17.8]} 16... Kf8 {[%clk
0:01:20.9]} 17. gxf6 {[%clk 0:02:17.6]} 17... Bxf4 {[%clk 0:01:17.3]} 18. Bxf4
{[%clk 0:02:17]} 18... Bxh3+ {[%clk 0:01:17.4]} 19. Kh1 {[%clk 0:02:06.5]} 19...
Bg4 {[%clk 0:01:13.2]} 20. fxg7+ {[%clk 0:01:41.5]} 20... Kxg7 {[%clk
0:01:11.4]} 21. Be5+ {[%clk 0:01:30.5]} 21... f6 {[%clk 0:01:08.1]} 22. Qd2
{[%clk 0:01:30.1]} 22... Nf3 {[%clk 0:00:41.9]} 23. Bxf6+ {[%clk 0:01:28.5]}
23... Kxf6 {[%clk 0:00:42.8]} 24. Qf4+ {[%clk 0:01:27.8]} 24... Kg6 {[%clk
0:00:28.7]} 25. Bxd5 {[%clk 0:01:02.4]} 25... Rhf8 {[%clk 0:00:28.8]} 26. Qe4+
{[%clk 0:00:47.3]} 26... Kg5 {[%clk 0:00:20.6]} 27. Be6 {[%clk 0:00:43.5]} 27...
Qd6 {[%clk 0:00:19.5]} 28. Qxg4+ {[%clk 0:00:36]} 28... hxg4 {[%clk 0:00:19]}
29. Ne4+ {[%clk 0:00:36.6]} 29... Kf4 {[%clk 0:00:18.8]} 30. Nxd6 {[%clk
0:00:37]} 30... Rh8+ {[%clk 0:00:19.4]} 31. Kg2 {[%clk 0:00:37.2]} 31... Rh2+
{[%clk 0:00:16.5]} 32. Kf1 {[%clk 0:00:36.7]} 32... Rh1+ {[%clk 0:00:11.1]} 33.
Ke2 {[%clk 0:00:34.8]} 33... Rxe1+ {[%clk 0:00:03.7]} 34. Rxe1 {[%clk
0:00:35.4]} 34... Nxe1 {[%clk 0:00:04.2]} 35. Kxe1 {[%clk 0:00:36.3]} 35... b5
{[%clk 0:00:03.6]} 36. Nb7 {[%clk 0:00:21.1]} 1-0

[Event "Early-Titled-Tuesday-Blitz-May-14-2024"]
[Site "Chess.com"]
[Date "2024.05.14"]
[Round "10"]
[White "Eloist"]
[Black "ilimchess2"]
[Result "0-1"]
[WhiteElo "2419"]
[BlackElo "2311"]
[TimeControl "180+1"]
[EndTime "9:57:31 PDT"]
[Termination "ilimchess2 won on time"]

1. e4 {[%clk 0:02:57.5]} 1... c6 {[%clk 0:03:00.2]} 2. Nf3 {[%clk 0:02:57]} 2...
d5 {[%clk 0:03:01.1]} 3. d3 {[%clk 0:02:55.6]} 3... g6 {[%clk 0:03:00.4]} 4. e5
{[%clk 0:02:54.7]} 4... Bg7 {[%clk 0:03:00.5]} 5. d4 {[%clk 0:02:54.7]} 5... Bg4
{[%clk 0:02:56.6]} 6. Nbd2 {[%clk 0:02:44]} 6... c5 {[%clk 0:02:55.8]} 7. Bb5+
{[%clk 0:02:38.7]} 7... Nc6 {[%clk 0:02:55.9]} 8. c3 {[%clk 0:02:23.9]} 8...
cxd4 {[%clk 0:02:54.9]} 9. cxd4 {[%clk 0:02:21.8]} 9... e6 {[%clk 0:02:50]} 10.
Bxc6+ {[%clk 0:02:18.9]} 10... bxc6 {[%clk 0:02:49.9]} 11. O-O {[%clk
0:02:08.1]} 11... Ne7 {[%clk 0:02:48.5]} 12. h3 {[%clk 0:02:04.5]} 12... Bxf3
{[%clk 0:02:48.2]} 13. Nxf3 {[%clk 0:02:02.1]} 13... Qb6 {[%clk 0:02:48.3]} 14.
b3 {[%clk 0:02:00.5]} 14... c5 {[%clk 0:02:36.8]} 15. dxc5 {[%clk 0:01:56.3]}
15... Qxc5 {[%clk 0:02:36.9]} 16. Be3 {[%clk 0:01:55.1]} 16... Qa5 {[%clk
0:02:37.3]} 17. b4 {[%clk 0:01:41.8]} 17... Qxb4 {[%clk 0:02:33]} 18. Rb1 {[%clk
0:01:37.9]} 18... Qc4 {[%clk 0:02:09.5]} 19. Rb7 {[%clk 0:01:31.4]} 19... Nf5
{[%clk 0:02:07.6]} 20. Bxa7 {[%clk 0:01:01.9]} 20... O-O {[%clk 0:02:06.6]} 21.
g4 {[%clk 0:00:59.5]} 21... Qa6 {[%clk 0:01:58.3]} 22. Qb3 {[%clk 0:00:46.4]}
22... Nh4 {[%clk 0:01:44]} 23. Nxh4 {[%clk 0:00:40.1]} 23... Rxa7 {[%clk
0:01:44.4]} 24. Rxa7 {[%clk 0:00:38.3]} 24... Qxa7 {[%clk 0:01:45.3]} 25. Nf3
{[%clk 0:00:34.5]} 25... Rb8 {[%clk 0:01:45.7]} 26. Qc2 {[%clk 0:00:32.5]} 26...
Qa3 {[%clk 0:01:39.5]} 27. Kg2 {[%clk 0:00:30.3]} 27... h6 {[%clk 0:01:37.6]}
28. Rb1 {[%clk 0:00:28.1]} 28... Ra8 {[%clk 0:01:32.4]} 29. Rb2 {[%clk
0:00:15.1]} 29... Kh7 {[%clk 0:01:30.5]} 30. Qb3 {[%clk 0:00:14.5]} 30... Qc5
{[%clk 0:01:24.9]} 31. Rc2 {[%clk 0:00:13.1]} 31... Qa5 {[%clk 0:01:21.4]} 32.
Qb7 {[%clk 0:00:11.3]} 32... Ra7 {[%clk 0:01:21.6]} 33. Qb8 {[%clk 0:00:08.7]}
33... Ra8 {[%clk 0:01:18.2]} 34. Qc7 {[%clk 0:00:06.9]} 34... Qa4 {[%clk
0:01:05.3]} 35. Rb2 {[%clk 0:00:06.2]} 35... Ra7 {[%clk 0:00:55.3]} 36. Qd8
{[%clk 0:00:04.1]} 36... Ra8 {[%clk 0:00:41.7]} 37. Qc7 {[%clk 0:00:04]} 37...
Ra7 {[%clk 0:00:41.2]} 38. Rb7 {[%clk 0:00:03.8]} 38... Rxb7 {[%clk 0:00:40.2]}
39. Qxb7 {[%clk 0:00:04.7]} 39... Kg8 {[%clk 0:00:37]} 40. Qc8+ {[%clk
0:00:04.6]} 40... Bf8 {[%clk 0:00:36.8]} 0-1

[Event "Early-Titled-Tuesday-Blitz-May-14-2024"]
[Site "Chess.com"]
[Date "2024.05.14"]
[Round "10"]
[White "FormerProdigy"]
[Black "Kirill_Klukin"]
[Result "1-0"]
[WhiteElo "3002"]
[BlackElo "2835"]
[TimeControl "180+1"]
[EndTime "9:57:33 PDT"]
[Termination "FormerProdigy won by resignation"]

1. e4 {[%clk 0:03:00.9]} 1... e6 {[%clk 0:02:54.5]} 2. d4 {[%clk 0:03:00]} 2...
d5 {[%clk 0:02:53.7]} 3. Nd2 {[%clk 0:03:00.6]} 3... c5 {[%clk 0:02:53.4]} 4.
Ngf3 {[%clk 0:03:00.4]} 4... cxd4 {[%clk 0:02:50.8]} 5. Nxd4 {[%clk 0:03:01.3]}
5... Nc6 {[%clk 0:02:50.7]} 6. Bb5 {[%clk 0:03:01.6]} 6... Bd7 {[%clk
0:02:50.7]} 7. Nxc6 {[%clk 0:03:02.2]} 7... bxc6 {[%clk 0:02:51.1]} 8. Bd3
{[%clk 0:03:02.6]} 8... Bd6 {[%clk 0:02:39.8]} 9. Qe2 {[%clk 0:03:02.5]} 9...
Qc7 {[%clk 0:02:35.8]} 10. Nf3 {[%clk 0:03:00.8]} 10... Ne7 {[%clk 0:02:33.4]}
11. e5 {[%clk 0:02:58.2]} 11... Bc5 {[%clk 0:02:33.8]} 12. O-O {[%clk
0:02:54.9]} 12... a5 {[%clk 0:02:30.5]} 13. h4 {[%clk 0:02:45.7]} 13... h6
{[%clk 0:02:26.8]} 14. c4 {[%clk 0:02:40.6]} 14... Rb8 {[%clk 0:02:23.7]} 15.
Rb1 {[%clk 0:02:37.2]} 15... Nf5 {[%clk 0:01:56.2]} 16. Bxf5 {[%clk 0:02:15.4]}
16... exf5 {[%clk 0:01:55.7]} 17. Be3 {[%clk 0:02:02.3]} 17... Be7 {[%clk
0:01:41.8]} 18. cxd5 {[%clk 0:01:57.8]} 18... cxd5 {[%clk 0:01:41.6]} 19. Rfc1
{[%clk 0:01:58.5]} 19... Qb7 {[%clk 0:01:25.4]} 20. Bc5 {[%clk 0:01:58.8]} 20...
Qb5 {[%clk 0:01:07.1]} 21. Qe3 {[%clk 0:01:35.2]} 21... Bxc5 {[%clk 0:00:53.2]}
22. Rxc5 {[%clk 0:01:35.1]} 22... Qb4 {[%clk 0:00:53.9]} 23. Rxd5 {[%clk
0:01:19.3]} 23... Be6 {[%clk 0:00:53.2]} 24. a3 {[%clk 0:01:14.9]} 24... Qa4
{[%clk 0:00:36.8]} 25. Rd4 {[%clk 0:01:07.1]} 25... Qc2 {[%clk 0:00:28.6]} 26.
Rdd1 {[%clk 0:01:01.3]} 26... O-O {[%clk 0:00:27.9]} 27. Nd4 {[%clk 0:00:59.2]}
27... Qc4 {[%clk 0:00:23.7]} 28. b3 {[%clk 0:00:53.8]} 28... Qd5 {[%clk
0:00:09.6]} 29. Nxf5 {[%clk 0:00:52.1]} 29... Qb7 {[%clk 0:00:09.9]} 30. Nd6
{[%clk 0:00:48.9]} 30... Qc6 {[%clk 0:00:07.7]} 31. b4 {[%clk 0:00:44.6]} 31...
axb4 {[%clk 0:00:07.9]} 32. axb4 {[%clk 0:00:45.5]} 32... Ra8 {[%clk 0:00:08.1]}
33. b5 {[%clk 0:00:44.8]} 33... Qc2 {[%clk 0:00:07.1]} 34. Rdc1 {[%clk 0:00:37]}
34... Qa2 {[%clk 0:00:06]} 35. b6 {[%clk 0:00:36.5]} 35... Rab8 {[%clk
0:00:04.8]} 36. b7 {[%clk 0:00:35.8]} 36... Bd5 {[%clk 0:00:05.2]} 37. Qd4
{[%clk 0:00:31.5]} 37... Rfd8 {[%clk 0:00:04.3]} 38. Ra1 {[%clk 0:00:24]} 38...
Qb3 {[%clk 0:00:04.5]} 39. Rcb1 {[%clk 0:00:24.6]} 1-0

[Event "Early-Titled-Tuesday-Blitz-May-14-2024"]
[Site "Chess.com"]
[Date "2024.05.14"]
[Round "10"]
[White "Mops_2004"]
[Black "tandaleo"]
[Result "1-0"]
[WhiteElo "2819"]
[BlackElo "2606"]
[TimeControl "180+1"]
[EndTime "9:57:34 PDT"]
[Termination "Mops_2004 won by resignation"]

1. e4 {[%clk 0:03:00.9]} 1... e5 {[%clk 0:03:00]} 2. Nf3 {[%clk 0:03:00.7]} 2...
Nc6 {[%clk 0:03:00.5]} 3. Bb5 {[%clk 0:03:00.4]} 3... a6 {[%clk 0:02:51.8]} 4.
Ba4 {[%clk 0:03:00.1]} 4... d6 {[%clk 0:02:52.2]} 5. O-O {[%clk 0:02:56.9]} 5...
Bd7 {[%clk 0:02:52.5]} 6. c3 {[%clk 0:02:50.3]} 6... Nge7 {[%clk 0:02:52.6]} 7.
d4 {[%clk 0:02:50]} 7... Ng6 {[%clk 0:02:53.1]} 8. d5 {[%clk 0:02:41.3]} 8...
Nb8 {[%clk 0:02:52.7]} 9. Bc2 {[%clk 0:02:33]} 9... Be7 {[%clk 0:02:52.4]} 10.
c4 {[%clk 0:02:33.2]} 10... h6 {[%clk 0:02:43.5]} 11. Nc3 {[%clk 0:02:31.5]}
11... Bg5 {[%clk 0:02:43.6]} 12. b4 {[%clk 0:02:24.4]} 12... Qf6 {[%clk
0:02:40.4]} 13. Ne1 {[%clk 0:02:01.5]} 13... a5 {[%clk 0:02:25.6]} 14. bxa5
{[%clk 0:01:55]} 14... Rxa5 {[%clk 0:02:17]} 15. Nd3 {[%clk 0:01:49.3]} 15...
Na6 {[%clk 0:02:10.6]} 16. Nb5 {[%clk 0:01:41.5]} 16... O-O {[%clk 0:01:43.1]}
17. Bb2 {[%clk 0:01:18.8]} 17... Bxb5 {[%clk 0:01:39.8]} 18. Bc3 {[%clk
0:01:18.7]} 18... Bxc4 {[%clk 0:01:40.1]} 19. Bxa5 {[%clk 0:01:18.7]} 19... b6
{[%clk 0:01:27.3]} 20. Bc3 {[%clk 0:01:14.5]} 20... Nc5 {[%clk 0:01:24.2]} 21.
Re1 {[%clk 0:01:12.9]} 21... Ra8 {[%clk 0:00:33]} 22. Nxc5 {[%clk 0:01:07.9]}
22... bxc5 {[%clk 0:00:33.1]} 23. Bd3 {[%clk 0:01:08.5]} 23... Rxa2 {[%clk
0:00:23.9]} 24. Rxa2 {[%clk 0:01:03.1]} 24... Bxa2 {[%clk 0:00:24.8]} 25. Qa4
{[%clk 0:00:58.7]} 25... c4 {[%clk 0:00:22.4]} 26. Bxc4 {[%clk 0:00:52.1]} 26...
Bxc4 {[%clk 0:00:22.1]} 27. Qxc4 {[%clk 0:00:53]} 27... Bh4 {[%clk 0:00:18.7]}
28. g3 {[%clk 0:00:52.4]} 28... Bg5 {[%clk 0:00:19]} 29. Kg2 {[%clk 0:00:45.6]}
29... h5 {[%clk 0:00:18.9]} 30. Qxc7 {[%clk 0:00:42.1]} 30... h4 {[%clk
0:00:19]} 31. Qc8+ {[%clk 0:00:42.5]} 31... Kh7 {[%clk 0:00:18.9]} 32. Rb1
{[%clk 0:00:36.4]} 32... Kh6 {[%clk 0:00:05.8]} 33. Rb7 {[%clk 0:00:25.9]} 33...
hxg3 {[%clk 0:00:02.1]} 34. hxg3 {[%clk 0:00:25.3]} 34... Bh4 {[%clk 0:00:02.4]}
35. Qf5 {[%clk 0:00:20.1]} 35... Qxf5 {[%clk 0:00:01]} 36. exf5 {[%clk
0:00:20.3]} 36... Ne7 {[%clk 0:00:01.9]} 37. gxh4 {[%clk 0:00:18.7]} 37... Nxd5
{[%clk 0:00:02.8]} 38. Bd2+ {[%clk 0:00:18.9]} 38... Kh7 {[%clk 0:00:02.6]} 39.
Rxf7 {[%clk 0:00:19.3]} 1-0

[Event "Early-Titled-Tuesday-Blitz-May-14-2024"]
[Site "Chess.com"]
[Date "2024.05.14"]
[Round "10"]
[White "biveklama"]
[Black "lucasmito"]
[Result "1-0"]
[WhiteElo "2588"]
[BlackElo "2708"]
[TimeControl "180+1"]
[EndTime "9:57:39 PDT"]
[Termination "biveklama won on time"]

1. e4 {[%clk 0:03:00.9]} 1... e5 {[%clk 0:03:00]} 2. Nf3 {[%clk 0:02:59.8]} 2...
Nc6 {[%clk 0:03:00.4]} 3. Bc4 {[%clk 0:03:00.1]} 3... Nf6 {[%clk 0:03:00.7]} 4.
d3 {[%clk 0:03:00.2]} 4... Bc5 {[%clk 0:03:01]} 5. c3 {[%clk 0:02:59.9]} 5... d6
{[%clk 0:03:01.7]} 6. O-O {[%clk 0:02:59.6]} 6... a6 {[%clk 0:03:02.4]} 7. Bb3
{[%clk 0:03:00.1]} 7... Ba7 {[%clk 0:03:01.6]} 8. Nbd2 {[%clk 0:02:58.2]} 8...
h6 {[%clk 0:03:02.3]} 9. Re1 {[%clk 0:02:51.4]} 9... O-O {[%clk 0:03:00.5]} 10.
h3 {[%clk 0:02:49.8]} 10... Be6 {[%clk 0:03:01.1]} 11. Bc2 {[%clk 0:02:49.4]}
11... Ne7 {[%clk 0:02:59.8]} 12. Nf1 {[%clk 0:02:47.7]} 12... Ng6 {[%clk
0:03:00.4]} 13. d4 {[%clk 0:02:34.5]} 13... c6 {[%clk 0:02:42.2]} 14. Ng3 {[%clk
0:02:32.7]} 14... Re8 {[%clk 0:02:35.2]} 15. a4 {[%clk 0:02:31.7]} 15... a5
{[%clk 0:02:31.2]} 16. Be3 {[%clk 0:02:26.4]} 16... Qc7 {[%clk 0:02:29.4]} 17.
Qd2 {[%clk 0:02:26.1]} 17... Kh7 {[%clk 0:02:09.5]} 18. Rad1 {[%clk 0:02:06.7]}
18... Rad8 {[%clk 0:01:50.4]} 19. Qc1 {[%clk 0:02:06.5]} 19... Bb8 {[%clk
0:01:38.7]} 20. b3 {[%clk 0:02:02.8]} 20... b5 {[%clk 0:01:35.6]} 21. axb5
{[%clk 0:02:01.1]} 21... cxb5 {[%clk 0:01:36.5]} 22. d5 {[%clk 0:02:00.9]} 22...
Bc8 {[%clk 0:01:34]} 23. Qd2 {[%clk 0:01:50.4]} 23... Ba7 {[%clk 0:01:23.9]} 24.
Bd3 {[%clk 0:01:42.1]} 24... Bxe3 {[%clk 0:01:21.4]} 25. fxe3 {[%clk 0:01:43]}
25... Bd7 {[%clk 0:01:17.8]} 26. Ra1 {[%clk 0:01:42.3]} 26... Ra8 {[%clk
0:01:16.4]} 27. Rec1 {[%clk 0:01:35]} 27... Rec8 {[%clk 0:01:16.1]} 28. Kh2
{[%clk 0:01:26.9]} 28... Ne7 {[%clk 0:01:02.5]} 29. Nh4 {[%clk 0:01:24.8]} 29...
g6 {[%clk 0:01:01.1]} 30. Nf3 {[%clk 0:01:23]} 30... Kg7 {[%clk 0:01:00.2]} 31.
Be2 {[%clk 0:01:19.6]} 31... Qb6 {[%clk 0:00:50.7]} 32. Bd3 {[%clk 0:01:16.3]}
32... Rc7 {[%clk 0:00:38.4]} 33. Rf1 {[%clk 0:01:12]} 33... Rac8 {[%clk
0:00:37]} 34. Ne2 {[%clk 0:01:12.2]} 34... b4 {[%clk 0:00:21.4]} 35. c4 {[%clk
0:01:10.1]} 35... Be8 {[%clk 0:00:20.4]} 36. Ned4 {[%clk 0:01:06.3]} 36... Neg8
{[%clk 0:00:13.2]} 37. Rf2 {[%clk 0:01:04]} 37... Nd7 {[%clk 0:00:13.1]} 38.
Raf1 {[%clk 0:01:03.4]} 38... Nc5 {[%clk 0:00:11.6]} 39. Bc2 {[%clk 0:01:03.6]}
39... a4 {[%clk 0:00:10.1]} 40. bxa4 {[%clk 0:01:03.6]} 40... b3 {[%clk
0:00:10.3]} 41. Bb1 {[%clk 0:01:03.7]} 41... Bxa4 {[%clk 0:00:09.6]} 42. Nh4
{[%clk 0:01:02.9]} 42... b2 {[%clk 0:00:06.5]} 43. Qe2 {[%clk 0:01:01.6]} 43...
exd4 {[%clk 0:00:05.4]} 44. exd4 {[%clk 0:01:01.5]} 44... Nb3 {[%clk 0:00:06.1]}
45. c5 {[%clk 0:00:51.9]} 45... dxc5 {[%clk 0:00:05.4]} 46. e5 {[%clk
0:00:51.5]} 46... Nxd4 {[%clk 0:00:05.2]} 47. Qg4 {[%clk 0:00:50.3]} 47... Re8
{[%clk 0:00:04.3]} 48. d6 {[%clk 0:00:48.2]} 48... Rd7 {[%clk 0:00:00.8]} 49.
Nxg6 {[%clk 0:00:48.4]} 1-0